[Event "*** Titled Tuesday 3|2 Blitz"]
[Site "Chess.com"]
[Date "2015.11.03"]
[Round "3"]
[White "Noukii"]
[Black "SerGo055"]
[Result "1-0"]
[WhiteElo "2638"]
[BlackElo "2414"]
[TimeControl "180+2"]
[EndTime "17:32:52 PST"]
[Termination "Noukii won by resignation"]

1. d4 {[%clk 0:03:01.9]} 1... d5 {[%clk 0:03:00.3]} 2. c4 {[%clk 0:03:02.7]}
2... c6 {[%clk 0:03:01.1]} 3. Nc3 {[%clk 0:03:03.7]} 3... Nf6 {[%clk 0:03:01.1]}
4. Nf3 {[%clk 0:03:04.3]} 4... e6 {[%clk 0:03:02.1]} 5. Bg5 {[%clk 0:03:03.1]}
5... dxc4 {[%clk 0:03:03.1]} 6. e4 {[%clk 0:03:03.5]} 6... b5 {[%clk 0:03:04.2]}
7. e5 {[%clk 0:03:04.6]} 7... h6 {[%clk 0:03:05.3]} 8. Bh4 {[%clk 0:03:06.2]}
8... g5 {[%clk 0:03:06.9]} 9. exf6 {[%clk 0:02:57.4]} 9... gxh4 {[%clk
0:03:07.4]} 10. Ne5 {[%clk 0:02:58.8]} 10... Qxf6 {[%clk 0:03:08.2]} 11. a4
{[%clk 0:03:00.4]} 11... Bb4 {[%clk 0:02:59.9]} 12. g3 {[%clk 0:02:58.5]} 12...
a6 {[%clk 0:02:16.3]} 13. Bg2 {[%clk 0:02:57.5]} 13... Ra7 {[%clk 0:02:16.8]}
14. O-O {[%clk 0:02:53.8]} 14... Rc7 {[%clk 0:01:58.4]} 15. Ne4 {[%clk
0:02:45.9]} 15... Qg7 {[%clk 0:01:57.9]} 16. Qh5 {[%clk 0:02:29.3]} 16... Nd7
{[%clk 0:01:45.9]} 17. f4 {[%clk 0:02:26]} 17... hxg3 {[%clk 0:01:33.7]} 18.
hxg3 {[%clk 0:02:27.9]} 18... Nf6 {[%clk 0:01:31.6]} 19. Nxf6+ {[%clk
0:02:22.5]} 19... Qxf6 {[%clk 0:01:32.7]} 20. Nxc6 {[%clk 0:02:17.1]} 20... Bd6
{[%clk 0:01:23.9]} 21. axb5 {[%clk 0:02:15.1]} 21... axb5 {[%clk 0:01:22]} 22.
Qxb5 {[%clk 0:02:12.4]} 22... O-O {[%clk 0:01:22.6]} 23. Ne5 {[%clk 0:02:12.8]}
23... c3 {[%clk 0:01:18.8]} 24. bxc3 {[%clk 0:02:09.6]} 24... Rxc3 {[%clk
0:01:19.6]} 25. Rf3 {[%clk 0:02:11]} 25... Rxf3 {[%clk 0:01:09.9]} 26. Bxf3
{[%clk 0:02:12.9]} 26... Bxe5 {[%clk 0:01:00.6]} 27. dxe5 {[%clk 0:02:12.9]}
27... Qe7 {[%clk 0:01:00.9]} 28. Rd1 {[%clk 0:01:43.6]} 28... Qa7+ {[%clk
0:00:59.4]} 29. Kg2 {[%clk 0:01:39.2]} 29... Qa2+ {[%clk 0:00:55.3]} 30. Kh3
{[%clk 0:01:36.8]} 30... Ba6 {[%clk 0:00:55.5]} 31. Qc5 {[%clk 0:01:28.7]} 31...
Be2 {[%clk 0:00:45.4]} 32. Qf2 {[%clk 0:01:25.9]} 32... Bc4 {[%clk 0:00:35.2]}
33. Qxa2 {[%clk 0:01:15.2]} 33... Bxa2 {[%clk 0:00:36]} 34. Rd7 {[%clk
0:01:16.8]} 34... Bb1 {[%clk 0:00:34.2]} 35. Bh5 {[%clk 0:01:14.9]} 35... Kg7
{[%clk 0:00:33.6]} 36. Re7 {[%clk 0:01:10.5]} 36... Bg6 {[%clk 0:00:34.2]} 37.
Bg4 {[%clk 0:01:10.9]} 37... h5 {[%clk 0:00:31.6]} 38. Bxe6 {[%clk 0:01:09.7]}
38... Rb8 {[%clk 0:00:23.4]} 39. Bxf7 {[%clk 0:01:08.5]} 39... Kf8 {[%clk
0:00:17.4]} 40. Bxg6 {[%clk 0:01:09.2]} 40... Kxe7 {[%clk 0:00:18.4]} 41. Bxh5
{[%clk 0:01:10.9]} 41... Rh8 {[%clk 0:00:18.4]} 42. g4 {[%clk 0:01:10.9]} 42...
Ke6 {[%clk 0:00:19.4]} 43. Kg3 {[%clk 0:01:11.3]} 43... Rb8 {[%clk 0:00:20]} 44.
Bg6 {[%clk 0:01:11.4]} 44... Rb3+ {[%clk 0:00:17.9]} 45. Kh4 {[%clk 0:01:12.6]}
45... Rf3 {[%clk 0:00:19]} 46. Kg5 {[%clk 0:01:13.3]} 46... Rf2 {[%clk
0:00:19.4]} 47. Bd3 {[%clk 0:01:11.9]} 47... Rf3 {[%clk 0:00:19.5]} 48. Bc4+
{[%clk 0:01:12.8]} 48... Ke7 {[%clk 0:00:20.1]} 49. f5 {[%clk 0:01:13.9]} 49...
Rc3 {[%clk 0:00:20.9]} 50. f6+ {[%clk 0:01:14.6]} 50... Kf8 {[%clk 0:00:22.3]}
51. Be6 {[%clk 0:01:14]} 51... Rc6 {[%clk 0:00:22.7]} 52. Kf5 {[%clk 0:01:14.9]}
52... Rc3 {[%clk 0:00:21.9]} 53. Bd5 {[%clk 0:01:15.7]} 53... Rc5 {[%clk
0:00:22.7]} 54. Be4 {[%clk 0:01:12.9]} 54... Rc1 {[%clk 0:00:21.3]} 55. g5
{[%clk 0:01:14.5]} 55... Rf1+ {[%clk 0:00:18.5]} 56. Ke6 {[%clk 0:01:13.2]}
56... Re1 {[%clk 0:00:19.9]} 57. Bh7 {[%clk 0:01:12.1]} 57... Rg1 {[%clk
0:00:15.9]} 58. g6 {[%clk 0:01:12.2]} 58... Rg5 {[%clk 0:00:14.1]} 59. g7+
{[%clk 0:01:12.7]} 59... Rxg7 {[%clk 0:00:15.5]} 60. fxg7+ {[%clk 0:01:13.6]}
60... Kxg7 {[%clk 0:00:17.3]} 61. Bd3 {[%clk 0:01:14]} 1-0

[Event "*** Titled Tuesday 3|2 Blitz"]
[Site "Chess.com"]
[Date "2015.11.03"]
[Round "3"]
[White "saraswathii"]
[Black "AlexanderL"]
[Result "0-1"]
[WhiteElo "1909"]
[BlackElo "2553"]
[TimeControl "180+2"]
[EndTime "17:32:58 PST"]
[Termination "AlexanderL won by resignation"]

1. e4 {[%clk 0:03:01.9]} 1... e6 {[%clk 0:03:00.5]} 2. d3 {[%clk 0:03:02.1]}
2... d5 {[%clk 0:02:58.4]} 3. Nd2 {[%clk 0:02:57.2]} 3... Nf6 {[%clk 0:02:58.9]}
4. Ngf3 {[%clk 0:02:57.3]} 4... Be7 {[%clk 0:02:59.5]} 5. g3 {[%clk 0:02:57.2]}
5... O-O {[%clk 0:03:00.3]} 6. Bg2 {[%clk 0:02:57.4]} 6... Nc6 {[%clk
0:03:01.3]} 7. O-O {[%clk 0:02:57.3]} 7... dxe4 {[%clk 0:03:02.3]} 8. dxe4
{[%clk 0:02:57.5]} 8... e5 {[%clk 0:03:03.4]} 9. c3 {[%clk 0:02:51]} 9... a5
{[%clk 0:03:01.1]} 10. Qe2 {[%clk 0:02:49.2]} 10... Bc5 {[%clk 0:03:01.4]} 11.
Nc4 {[%clk 0:02:45.9]} 11... Qe7 {[%clk 0:03:02.1]} 12. Ne3 {[%clk 0:02:28.6]}
12... Rd8 {[%clk 0:02:52.4]} 13. Nh4 {[%clk 0:02:25.2]} 13... Be6 {[%clk
0:02:22.6]} 14. Nef5 {[%clk 0:02:07]} 14... Qd7 {[%clk 0:02:23.1]} 15. Bg5
{[%clk 0:01:57.5]} 15... Qd3 {[%clk 0:02:23.2]} 16. Qxd3 {[%clk 0:01:14.6]}
16... Rxd3 {[%clk 0:02:24]} 17. a3 {[%clk 0:01:03.9]} 17... Rad8 {[%clk
0:02:15.3]} 18. b4 {[%clk 0:00:41.4]} 18... Bb6 {[%clk 0:02:16.2]} 19. Rac1
{[%clk 0:00:27.2]} 19... axb4 {[%clk 0:02:12.7]} 20. axb4 {[%clk 0:00:27.5]}
20... R8d7 {[%clk 0:01:55.2]} 21. b5 {[%clk 0:00:21.2]} 21... Na5 {[%clk
0:01:55.8]} 22. Nh6+ {[%clk 0:00:14.4]} 22... gxh6 {[%clk 0:01:44]} 23. Bxf6
{[%clk 0:00:14.7]} 23... Nb3 {[%clk 0:01:14.5]} 24. Rc2 {[%clk 0:00:13.5]} 24...
Rd2 {[%clk 0:01:15.7]} 25. Rxd2 {[%clk 0:00:11.4]} 25... Rxd2 {[%clk 0:01:16.2]}
26. Bxe5 {[%clk 0:00:12]} 26... Bc4 {[%clk 0:01:16.4]} 27. Rb1 {[%clk
0:00:10.6]} 27... Rxf2 {[%clk 0:01:17.3]} 28. Bd4 {[%clk 0:00:09.2]} 28... Bxd4
{[%clk 0:00:38.2]} 29. cxd4 {[%clk 0:00:03.5]} 29... Ra2 {[%clk 0:00:38.8]} 30.
d5 {[%clk 0:00:03.9]} 30... Nd4 {[%clk 0:00:32.8]} 31. Re1 {[%clk 0:00:04.4]}
31... Bxb5 {[%clk 0:00:31.8]} 32. Nf5 {[%clk 0:00:05]} 32... Nxf5 {[%clk
0:00:32.4]} 33. exf5 {[%clk 0:00:06.9]} 33... Kg7 {[%clk 0:00:34.1]} 34. Re7
{[%clk 0:00:07.4]} 34... Rc2 {[%clk 0:00:32.4]} 35. d6 {[%clk 0:00:08]} 35...
cxd6 {[%clk 0:00:31.8]} 36. Bxb7 {[%clk 0:00:08.8]} 36... Kf6 {[%clk 0:00:29.5]}
37. Re1 {[%clk 0:00:08.9]} 37... Bc6 {[%clk 0:00:29.8]} 38. Bc8 {[%clk
0:00:09.5]} 38... Rg2+ {[%clk 0:00:29.4]} 39. Kf1 {[%clk 0:00:09.9]} 39... Rxh2
{[%clk 0:00:30.6]} 40. Re3 {[%clk 0:00:10.5]} 40... h5 {[%clk 0:00:30.2]} 41.
Kg1 {[%clk 0:00:10.7]} 41... Rc2 {[%clk 0:00:27.9]} 42. Rd3 {[%clk 0:00:11.4]}
42... Ke5 {[%clk 0:00:27]} 43. Re3+ {[%clk 0:00:12.5]} 43... Be4 {[%clk
0:00:28.3]} 44. Bb7 {[%clk 0:00:12.6]} 44... d5 {[%clk 0:00:29.5]} 45. Re1
{[%clk 0:00:09.8]} 45... Kxf5 {[%clk 0:00:29]} 46. Kf1 {[%clk 0:00:09.9]} 46...
Kg4 {[%clk 0:00:28.8]} 0-1

[Event "*** Titled Tuesday 3|2 Blitz"]
[Site "Chess.com"]
[Date "2015.11.03"]
[Round "4"]
[White "Tirantes"]
[Black "Kanthecarowin"]
[Result "1-0"]
[WhiteElo "2239"]
[BlackElo "2149"]
[TimeControl "180+2"]
[EndTime "17:42:04 PST"]
[Termination "Tirantes won by resignation"]

1. c4 {[%clk 0:03:01.9]} 1... Nf6 {[%clk 0:03:00.2]} 2. Nc3 {[%clk 0:02:58.9]}
2... g6 {[%clk 0:03:02.1]} 3. g3 {[%clk 0:02:58.5]} 3... Bg7 {[%clk 0:03:04]} 4.
Bg2 {[%clk 0:02:58.9]} 4... O-O {[%clk 0:03:05.9]} 5. e4 {[%clk 0:02:58.8]} 5...
d6 {[%clk 0:02:52.2]} 6. Nge2 {[%clk 0:02:58.7]} 6... c5 {[%clk 0:02:54.1]} 7.
d4 {[%clk 0:02:56.1]} 7... Nc6 {[%clk 0:02:56]} 8. d5 {[%clk 0:02:48.6]} 8...
Nd4 {[%clk 0:02:54.5]} 9. Nxd4 {[%clk 0:02:41.9]} 9... cxd4 {[%clk 0:02:56.4]}
10. Qxd4 {[%clk 0:02:41.6]} 10... e6 {[%clk 0:02:57.5]} 11. Qd1 {[%clk
0:02:30.6]} 11... exd5 {[%clk 0:02:56.7]} 12. cxd5 {[%clk 0:02:28.6]} 12... Bg4
{[%clk 0:02:57.7]} 13. Qb3 {[%clk 0:02:14]} 13... Re8 {[%clk 0:02:55.6]} 14. O-O
{[%clk 0:02:10]} 14... Nd7 {[%clk 0:02:55.4]} 15. Be3 {[%clk 0:02:01.5]} 15...
b6 {[%clk 0:02:54.3]} 16. h3 {[%clk 0:02:00.3]} 16... Bxc3 {[%clk 0:02:51.8]}
17. bxc3 {[%clk 0:01:53.9]} 17... Be2 {[%clk 0:02:51.3]} 18. Rfe1 {[%clk
0:01:49.3]} 18... Ba6 {[%clk 0:02:53.2]} 19. Bd4 {[%clk 0:01:45.8]} 19... Ne5
{[%clk 0:02:53]} 20. Bxe5 {[%clk 0:01:36.3]} 20... Rxe5 {[%clk 0:02:54.9]} 21.
f4 {[%clk 0:01:35.9]} 21... Re7 {[%clk 0:02:55.1]} 22. e5 {[%clk 0:01:35.4]}
22... dxe5 {[%clk 0:02:55.8]} 23. fxe5 {[%clk 0:01:27.8]} 23... Rc8 {[%clk
0:02:55.5]} 24. d6 {[%clk 0:01:19.9]} 24... Rd7 {[%clk 0:02:51.3]} 25. e6 {[%clk
0:01:17.4]} 25... Rxd6 {[%clk 0:02:49.8]} 26. exf7+ {[%clk 0:01:14.4]} 26... Kg7
{[%clk 0:02:50.8]} 27. Re8 {[%clk 0:01:11.9]} 27... Qxe8 {[%clk 0:02:43.5]} 28.
fxe8=Q {[%clk 0:01:09.9]} 28... Rxe8 {[%clk 0:02:45.4]} 29. Qa3 {[%clk
0:01:05.4]} 1-0

[Event "*** Titled Tuesday 3|2 Blitz"]
[Site "Chess.com"]
[Date "2015.11.03"]
[Round "4"]
[White "jcibarra"]
[Black "Dlugy"]
[Result "0-1"]
[WhiteElo "2540"]
[BlackElo "2583"]
[TimeControl "180+2"]
[EndTime "17:43:24 PST"]
[Termination "Dlugy won by checkmate"]

1. e4 {[%clk 0:03:01.9]} 1... c5 {[%clk 0:03:00.2]} 2. b3 {[%clk 0:03:02.7]}
2... Nc6 {[%clk 0:02:58.9]} 3. Bb2 {[%clk 0:03:02.7]} 3... d6 {[%clk 0:03:00.3]}
4. Bb5 {[%clk 0:03:03.1]} 4... Bd7 {[%clk 0:03:00.6]} 5. f4 {[%clk 0:03:04.1]}
5... a6 {[%clk 0:02:49]} 6. Bxc6 {[%clk 0:03:04.2]} 6... Bxc6 {[%clk 0:02:50.2]}
7. Qe2 {[%clk 0:03:06.1]} 7... Nf6 {[%clk 0:02:47.2]} 8. d3 {[%clk 0:03:04.4]}
8... e6 {[%clk 0:02:44.7]} 9. Nf3 {[%clk 0:03:04.8]} 9... Be7 {[%clk 0:02:45.8]}
10. O-O {[%clk 0:03:05.4]} 10... Qc7 {[%clk 0:02:46.3]} 11. c4 {[%clk
0:03:03.7]} 11... O-O-O {[%clk 0:02:47.2]} 12. Nc3 {[%clk 0:03:00.7]} 12... h6
{[%clk 0:02:46.4]} 13. a3 {[%clk 0:02:59.8]} 13... g5 {[%clk 0:02:35.4]} 14.
fxg5 {[%clk 0:02:41.3]} 14... hxg5 {[%clk 0:02:36.4]} 15. Nxg5 {[%clk
0:02:42.8]} 15... d5 {[%clk 0:02:26]} 16. e5 {[%clk 0:02:40]} 16... d4 {[%clk
0:02:22.1]} 17. Na2 {[%clk 0:02:10.8]} 17... Rdg8 {[%clk 0:02:21.2]} 18. Bc1
{[%clk 0:01:30.1]} 18... Nd7 {[%clk 0:02:11.6]} 19. Nf3 {[%clk 0:01:18.1]} 19...
Nxe5 {[%clk 0:02:00.4]} 20. Nxe5 {[%clk 0:00:41]} 20... Qxe5 {[%clk 0:01:38.8]}
21. Qxe5 {[%clk 0:00:34.1]} 21... Rxg2+ {[%clk 0:01:39.4]} 22. Kh1 {[%clk
0:00:35.4]} 22... Rgxh2+ {[%clk 0:01:40.8]} 23. Kg1 {[%clk 0:00:36.1]} 23...
Rg2# {[%clk 0:01:42.7]} 0-1

[Event "*** Titled Tuesday 3|2 Blitz"]
[Site "Chess.com"]
[Date "2015.11.03"]
[Round "4"]
[White "Noukii"]
[Black "Malev212"]
[Result "1-0"]
[WhiteElo "2640"]
[BlackElo "2291"]
[TimeControl "180+2"]
[EndTime "17:43:41 PST"]
[Termination "Noukii won by resignation"]

1. d4 {[%clk 0:03:01.9]} 1... Nf6 {[%clk 0:02:59.5]} 2. c4 {[%clk 0:03:02.3]}
2... b6 {[%clk 0:03:00.3]} 3. Nc3 {[%clk 0:03:02.8]} 3... Bb7 {[%clk 0:03:00.8]}
4. Qc2 {[%clk 0:03:04.4]} 4... e6 {[%clk 0:02:56.7]} 5. e4 {[%clk 0:03:02.3]}
5... Bb4 {[%clk 0:02:58]} 6. Bd3 {[%clk 0:03:00.8]} 6... c5 {[%clk 0:02:58.7]}
7. d5 {[%clk 0:02:59.7]} 7... b5 {[%clk 0:02:59.6]} 8. Nf3 {[%clk 0:02:14.1]}
8... bxc4 {[%clk 0:02:58.3]} 9. Bxc4 {[%clk 0:02:15]} 9... exd5 {[%clk
0:02:58.6]} 10. exd5 {[%clk 0:02:16.9]} 10... O-O {[%clk 0:02:58.2]} 11. O-O
{[%clk 0:02:16.7]} 11... d6 {[%clk 0:02:58.3]} 12. Bg5 {[%clk 0:02:15.1]} 12...
h6 {[%clk 0:02:59.1]} 13. Bh4 {[%clk 0:02:14.7]} 13... Nbd7 {[%clk 0:02:44.8]}
14. Ne4 {[%clk 0:01:57.2]} 14... Qe7 {[%clk 0:02:45.4]} 15. Ng3 {[%clk
0:01:29.6]} 15... Ne5 {[%clk 0:02:30.1]} 16. Nf5 {[%clk 0:01:29.3]} 16... Nxf3+
{[%clk 0:02:30.4]} 17. gxf3 {[%clk 0:01:31.2]} 17... Qd8 {[%clk 0:02:22.5]} 18.
Kh1 {[%clk 0:01:29.4]} 18... Kh8 {[%clk 0:01:36.1]} 19. Nxg7 {[%clk 0:01:19.3]}
19... Rg8 {[%clk 0:00:42.6]} 20. Qf5 {[%clk 0:01:13.1]} 20... Qd7 {[%clk
0:00:34]} 21. Bxf6 {[%clk 0:01:08.2]} 1-0

[Event "*** Titled Tuesday 3|2 Blitz"]
[Site "Chess.com"]
[Date "2015.11.03"]
[Round "4"]
[White "Sadovsky_Artem"]
[Black "DanielNaroditsky"]
[Result "1-0"]
[WhiteElo "2466"]
[BlackElo "2537"]
[TimeControl "180+2"]
[EndTime "17:43:58 PST"]
[Termination "Sadovsky_Artem won by resignation"]

1. e4 {[%clk 0:03:01]} 1... e5 {[%clk 0:03:00.8]} 2. Nf3 {[%clk 0:03:02.2]} 2...
Nc6 {[%clk 0:03:02.4]} 3. Nc3 {[%clk 0:03:02.1]} 3... Nf6 {[%clk 0:03:02.9]} 4.
Be2 {[%clk 0:03:03.2]} 4... g6 {[%clk 0:03:03.2]} 5. d4 {[%clk 0:03:03]} 5...
exd4 {[%clk 0:03:04]} 6. Nxd4 {[%clk 0:03:04]} 6... d6 {[%clk 0:02:49]} 7. Bg5
{[%clk 0:02:58.4]} 7... Bg7 {[%clk 0:02:48]} 8. Nxc6 {[%clk 0:02:59.7]} 8...
bxc6 {[%clk 0:02:48.4]} 9. e5 {[%clk 0:02:59]} 9... dxe5 {[%clk 0:02:46.8]} 10.
Qxd8+ {[%clk 0:03:00.3]} 10... Kxd8 {[%clk 0:02:48.5]} 11. O-O-O+ {[%clk
0:03:01.8]} 11... Ke7 {[%clk 0:02:49.8]} 12. Bf3 {[%clk 0:03:00.7]} 12... Be6
{[%clk 0:02:22.1]} 13. Bxc6 {[%clk 0:02:55.6]} 13... Rad8 {[%clk 0:02:22.6]} 14.
Be3 {[%clk 0:02:44.7]} 14... Ng4 {[%clk 0:02:21.6]} 15. Bc5+ {[%clk 0:02:43.6]}
15... Kf6 {[%clk 0:02:23]} 16. Ne4+ {[%clk 0:02:43.2]} 16... Kf5 {[%clk
0:02:24.5]} 17. h3 {[%clk 0:02:39.2]} 17... Rxd1+ {[%clk 0:01:45.4]} 18. Rxd1
{[%clk 0:02:36.6]} 18... Nf6 {[%clk 0:01:36.3]} 19. g4+ {[%clk 0:02:11.5]} 19...
Nxg4 {[%clk 0:01:37.3]} 20. hxg4+ {[%clk 0:02:12.2]} 20... Kxg4 {[%clk 0:01:39]}
21. Rg1+ {[%clk 0:02:10.7]} 21... Kh4 {[%clk 0:01:32.7]} 22. f3 {[%clk
0:02:08.3]} 22... Kh3 {[%clk 0:01:20.7]} 23. Rg3+ {[%clk 0:01:30.6]} 23... Kh4
{[%clk 0:01:20.1]} 24. Bf2 {[%clk 0:01:31.5]} 24... Kh5 {[%clk 0:01:04.9]} 25.
Rg5+ {[%clk 0:01:28.8]} 25... Kh6 {[%clk 0:01:06.3]} 26. Be3 {[%clk 0:01:30.5]}
26... Bf8 {[%clk 0:01:04.8]} 27. Rxe5+ {[%clk 0:01:25.4]} 27... Kg7 {[%clk
0:01:05.5]} 28. Bd4 {[%clk 0:01:23]} 28... Kg8 {[%clk 0:01:06.9]} 29. Nf6+
{[%clk 0:01:22.9]} 29... Kg7 {[%clk 0:01:08.2]} 30. Ne8+ {[%clk 0:01:20.3]}
30... Kg8 {[%clk 0:01:09.2]} 31. Re1 {[%clk 0:01:18]} 31... Bxa2 {[%clk
0:01:00.1]} 32. Nf6+ {[%clk 0:01:14]} 32... Kg7 {[%clk 0:01:01.4]} 33. Nd7+
{[%clk 0:01:15.6]} 1-0

[Event "*** Titled Tuesday 3|2 Blitz"]
[Site "Chess.com"]
[Date "2015.11.03"]
[Round "4"]
[White "Penguininja"]
[Black "Viaje"]
[Result "1-0"]
[WhiteElo "2167"]
[BlackElo "2217"]
[TimeControl "180+2"]
[EndTime "17:43:58 PST"]
[Termination "Penguininja won by resignation"]

1. d4 {[%clk 0:03:01.9]} 1... Nf6 {[%clk 0:03:00]} 2. c4 {[%clk 0:03:02]} 2...
c5 {[%clk 0:03:01.5]} 3. Nf3 {[%clk 0:03:02.3]} 3... cxd4 {[%clk 0:03:01.8]} 4.
Nxd4 {[%clk 0:03:04.2]} 4... e5 {[%clk 0:03:03]} 5. Nb5 {[%clk 0:03:05.7]} 5...
d5 {[%clk 0:03:03.9]} 6. cxd5 {[%clk 0:03:07.6]} 6... Bc5 {[%clk 0:03:04]} 7.
N5c3 {[%clk 0:03:08.9]} 7... O-O {[%clk 0:03:03.5]} 8. g3 {[%clk 0:03:10.3]}
8... e4 {[%clk 0:03:02.9]} 9. Bg2 {[%clk 0:03:11.4]} 9... Re8 {[%clk 0:03:04]}
10. O-O {[%clk 0:03:12.3]} 10... Nbd7 {[%clk 0:03:04.7]} 11. Bg5 {[%clk
0:03:09.5]} 11... h6 {[%clk 0:03:03.5]} 12. Bxf6 {[%clk 0:02:43.1]} 12... Nxf6
{[%clk 0:03:05.4]} 13. e3 {[%clk 0:02:45]} 13... Bg4 {[%clk 0:03:02.2]} 14. Qb3
{[%clk 0:02:42.6]} 14... Qd7 {[%clk 0:02:58.7]} 15. Nd2 {[%clk 0:02:38.8]} 15...
Bh3 {[%clk 0:02:47.1]} 16. Ndxe4 {[%clk 0:01:55]} 16... Bxg2 {[%clk 0:02:32.7]}
17. Nxf6+ {[%clk 0:01:52.3]} 17... gxf6 {[%clk 0:02:32.3]} 18. Kxg2 {[%clk
0:01:53.1]} 18... b5 {[%clk 0:02:26.6]} 19. Rfd1 {[%clk 0:01:33.5]} 19... b4
{[%clk 0:02:26.3]} 20. Ne2 {[%clk 0:01:31.7]} 20... Qf5 {[%clk 0:02:21.8]} 21.
Rac1 {[%clk 0:01:28.6]} 21... Qe4+ {[%clk 0:02:18.4]} 22. Kg1 {[%clk 0:01:27.1]}
22... Rac8 {[%clk 0:02:11.9]} 23. Nf4 {[%clk 0:01:13.2]} 23... Bb6 {[%clk
0:02:05.3]} 24. d6 {[%clk 0:01:12.6]} 24... Rxc1 {[%clk 0:02:01.6]} 25. Rxc1
{[%clk 0:01:14.5]} 25... Rd8 {[%clk 0:02:03.2]} 26. Rd1 {[%clk 0:01:11.4]} 26...
Qc6 {[%clk 0:01:43.9]} 27. Qd3 {[%clk 0:01:09]} 27... Rd7 {[%clk 0:01:40.9]} 28.
Nd5 {[%clk 0:01:04.2]} 28... Kg7 {[%clk 0:01:35.9]} 29. Ne7 {[%clk 0:01:02.1]}
29... Qc5 {[%clk 0:01:31]} 30. Nf5+ {[%clk 0:00:57.8]} 30... Kh8 {[%clk
0:01:31.2]} 31. Nxh6 {[%clk 0:00:57]} 31... Bc7 {[%clk 0:01:32.2]} 32. Nf5
{[%clk 0:00:47.3]} 32... Bb6 {[%clk 0:01:31.7]} 33. Qe4 {[%clk 0:00:43.9]} 1-0

[Event "*** Titled Tuesday 3|2 Blitz"]
[Site "Chess.com"]
[Date "2015.11.03"]
[Round "4"]
[White "spirals5"]
[Black "jcgs1030"]
[Result "1-0"]
[WhiteElo "2211"]
[BlackElo "2118"]
[TimeControl "180+2"]
[EndTime "17:44:43 PST"]
[Termination "spirals5 won by resignation"]

1. e4 {[%clk 0:03:01.9]} 1... c5 {[%clk 0:02:48]} 2. Nf3 {[%clk 0:03:02.2]} 2...
d6 {[%clk 0:02:48.8]} 3. Nc3 {[%clk 0:03:02]} 3... Nf6 {[%clk 0:02:49.3]} 4. e5
{[%clk 0:03:02.7]} 4... dxe5 {[%clk 0:02:48.8]} 5. Nxe5 {[%clk 0:03:03.2]} 5...
a6 {[%clk 0:02:47.2]} 6. Bc4 {[%clk 0:03:01.2]} 6... e6 {[%clk 0:02:46.8]} 7. a4
{[%clk 0:03:00.4]} 7... Bd6 {[%clk 0:02:46.5]} 8. Qe2 {[%clk 0:02:57.9]} 8...
Qc7 {[%clk 0:02:44.5]} 9. Nf3 {[%clk 0:02:57.6]} 9... Nc6 {[%clk 0:02:44.5]} 10.
d3 {[%clk 0:02:53.4]} 10... O-O {[%clk 0:02:38.4]} 11. h3 {[%clk 0:02:50]} 11...
Nd4 {[%clk 0:02:12.9]} 12. Nxd4 {[%clk 0:02:50.4]} 12... cxd4 {[%clk 0:02:14]}
13. Ne4 {[%clk 0:02:51.4]} 13... Nxe4 {[%clk 0:02:14.5]} 14. Qxe4 {[%clk
0:02:51.8]} 14... Bb4+ {[%clk 0:02:14.6]} 15. Bd2 {[%clk 0:02:48.2]} 15... Bxd2+
{[%clk 0:02:11.8]} 16. Kxd2 {[%clk 0:02:48.7]} 16... Rd8 {[%clk 0:01:52.6]} 17.
a5 {[%clk 0:02:41.4]} 17... Qc5 {[%clk 0:01:35.9]} 18. Rhb1 {[%clk 0:02:35.6]}
18... Bd7 {[%clk 0:01:34.7]} 19. b4 {[%clk 0:02:29.5]} 19... Qg5+ {[%clk
0:01:35.1]} 20. f4 {[%clk 0:02:29.6]} 20... Qg3 {[%clk 0:01:35.2]} 21. Qf3
{[%clk 0:02:24.2]} 21... Qxf3 {[%clk 0:01:31.7]} 22. gxf3 {[%clk 0:02:24.9]}
22... Bc6 {[%clk 0:01:33]} 23. Ke2 {[%clk 0:02:25.4]} 23... Bd5 {[%clk
0:01:28.7]} 24. b5 {[%clk 0:02:24.3]} 24... Rac8 {[%clk 0:01:22.6]} 25. bxa6
{[%clk 0:02:22.6]} 25... bxa6 {[%clk 0:01:23.9]} 26. Ra4 {[%clk 0:02:11.9]}
26... Bc6 {[%clk 0:00:14.6]} 27. Rab4 {[%clk 0:02:08]} 27... Bb5 {[%clk
0:00:16.5]} 28. R1b2 {[%clk 0:02:05.1]} 28... Rc5 {[%clk 0:00:11]} 29. Bxb5
{[%clk 0:02:05.7]} 29... axb5 {[%clk 0:00:12.5]} 30. Rxb5 {[%clk 0:02:06.6]}
30... Rxb5 {[%clk 0:00:12.5]} 31. Rxb5 {[%clk 0:02:06.9]} 31... Kf8 {[%clk
0:00:14.4]} 32. Kd2 {[%clk 0:02:05]} 32... Ra8 {[%clk 0:00:15.6]} 33. Kc1 {[%clk
0:02:03.3]} 33... Ke7 {[%clk 0:00:16.5]} 34. Kb2 {[%clk 0:02:04.3]} 34... Kf6
{[%clk 0:00:17.8]} 35. Kb3 {[%clk 0:02:04.7]} 35... Kg6 {[%clk 0:00:14.5]} 36.
Kc4 {[%clk 0:01:59.4]} 36... Rd8 {[%clk 0:00:15.2]} 37. a6 {[%clk 0:01:59.1]}
37... f6 {[%clk 0:00:13.9]} 38. a7 {[%clk 0:01:59.2]} 38... Ra8 {[%clk
0:00:15.3]} 39. Ra5 {[%clk 0:01:57.2]} 39... e5 {[%clk 0:00:17.2]} 40. fxe5
{[%clk 0:01:57.6]} 40... fxe5 {[%clk 0:00:18.7]} 41. Kd5 {[%clk 0:01:57.3]}
41... Kf5 {[%clk 0:00:20.1]} 42. Kc6 {[%clk 0:01:58.3]} 42... Kf4 {[%clk
0:00:17.3]} 43. Kb7 {[%clk 0:01:59.2]} 43... Rd8 {[%clk 0:00:18.2]} 44. a8=Q
{[%clk 0:01:59.8]} 44... Rxa8 {[%clk 0:00:19.6]} 45. Kxa8 {[%clk 0:02:00.6]} 1-0